{"text_format":"1","workbook":"xlsx","n_sheets":3,"sheets":["Quote Form","Instructions","Unit of Measure List"],"not_rendered":{"charts":0,"images":1,"macros":1,"external_links":0,"defined_names":3,"comments":0,"pivot_tables":0},"unopened":[],"bounds":{"document_bytes":16777216,"sheet_cells":100000,"rows_first":2000,"rows_last":500,"rows_between":2000,"halvings":0,"cell_chars":16384,"cell_head_chars":4096},"cells_cut":0,"cells_raw":0,"read":"whole","date_system":"1900"}

{"sheet":"Quote Form","index":0,"n_rows":64,"n_cols":11,"rows_kept":64,"cut":false,"hidden":false,"merged":[[4,5,4,7],[0,0,0,7],[4,0,4,1],[9,0,9,1],[10,0,10,1],[6,0,6,1],[62,0,63,7],[41,1,41,3],[25,1,25,3],[26,1,26,3],[27,1,27,3],[28,1,28,3],[29,1,29,3],[30,1,30,3],[49,1,49,3],[46,1,46,3],[47,1,47,3],[48,1,48,3],[56,0,56,5],[53,5,53,6],[38,1,38,3],[45,1,45,3],[13,0,13,1],[33,1,33,3],[34,1,34,3],[24,1,24,3],[23,1,23,3],[31,1,31,3],[14,0,14,1],[19,1,19,3],[32,1,32,3],[59,0,59,5],[37,1,37,3],[22,1,22,3],[21,1,21,3],[52,5,52,6],[50,5,50,6],[55,0,55,7],[44,1,44,3],[43,1,43,3],[39,1,39,3],[40,1,40,3],[42,1,42,3],[35,1,35,3],[36,1,36,3],[12,0,12,1],[20,1,20,3],[17,0,17,7],[1,0,1,7],[7,5,7,7],[8,5,8,7],[2,0,2,1],[3,0,3,1],[2,5,2,7],[7,0,7,1],[8,0,8,1],[10,5,10,7],[3,5,3,7],[9,5,9,7],[13,5,13,7],[14,5,14,7]]}
["Florida Department of Environmental Protection\nPetroleum Restoration Program\nStandardized Quote Form"]
["This form is required to submit a quote to the Petroleum Restoration Program (PRP).  To be considered, standardized quotes must be submitted concurrently to the site manager and requesting contractor listed below, along with any backup documentation as needed.  Note: Additional quotes may be requested. ",null,null,null,null,null,null,null,null,"This form is required to submit a quote to the Petroleum Restoration Program.  Please submit the signed quote to the site manager and requesting contractor listed below, along with any backup documentation as needed."]
["Facility Name:",null,null,null,"Request Date:",null,null,null,null,2]
["9-Digit Facility ID #:",null,null,null,"PO/WO # (if available):",null,null,null,null,3]
["Facility Address: ",null,null,null,"SPI # (if available):"]
[null,null,null,null,null,null,null,null,null,4]
["Quote Requested by",null,null,"Quote Requested from (if in-house, enter PRP Contractor information)",null,null,null,null,null,5]
[" PRP Contractor:",null,null,null,"Subcontractor Name:",null,null,null,null,6]
["Contractor Contact:",null,null,null,"Subcontractor Contact:",null,null,null,null,7]
["Contractor Phone:",null,null,null,"Subcontractor Phone:",null,null,null,null,8]
["Contractor Email:",null,null,null,"Subcontractor  Email:",null,null,null,null,9]
[null,null,null,null,null,null,null,null,null,10]
["Site Manager Name:",null,null,null,null,null,null,null,null,11]
["Site Manager Phone:",null,null,null,"Property Owner:",null,null,null,null,12]
["Site Manager Email:",null,null,null,"Responsible Party:",null,null,null,null,13]
[null,null,null,null,null,null,null,null,null,14]
["Project Description:",null,null,null,null,null,null,null,null,15]
[null,null,null,null,null,null,null,null,null,{"$f":"A18","v":0}]
[null,null,null,null,null,null,null,null,null,17]
["Item #","Item Description",null,null,"Unit of Measure","Qty","Price","Extended Price",true,"Item \nDescription"]
[null,null,null,null,null,null,null,{"$f":"SUM(F21*G21)","v":0},{"$f":"IF(G21<>\"\",TRUE,FALSE)","v":false},null,{"$f":"B21","v":0}]
[null,null,null,null,null,null,null,{"$f":"SUM(F22*G22)","v":0},{"$f":"IF(G22<>\"\",TRUE,FALSE)","v":false},null,{"$f":"B22","v":0}]
[null,null,null,null,null,null,null,0,false,null,0]
[null,null,null,null,null,null,null,0,false,null,0]
[null,null,null,null,null,null,null,0,false,null,0]
[null,null,null,null,null,null,null,0,false,null,0]
[null,null,null,null,null,null,null,0,false,null,0]
[null,null,null,null,null,null,null,0,false,null,0]
[null,null,null,null,null,null,null,0,false,null,0]
[null,null,null,null,null,null,null,0,false,null,0]
[null,null,null,null,null,null,null,0,false,null,0]
[null,null,null,null,null,null,null,0,false,null,0]
[null,null,null,null,null,null,null,0,false,null,0]
[null,null,null,null,null,null,null,0,false,null,0]
[null,null,null,null,null,null,null,0,false,null,0]
[null,null,null,null,null,null,null,0,false,null,0]
[null,null,null,null,null,null,null,0,false,null,0]
[null,null,null,null,null,null,null,0,false,null,0]
[null,null,null,null,null,null,null,0,false,null,0]
[null,null,null,null,null,null,null,0,false,null,0]
[null,null,null,null,null,null,null,0,false,null,0]
[null,null,null,null,null,null,null,0,false,null,0]
[null,null,null,null,null,null,null,0,false,null,0]
[null,null,null,null,null,null,null,0,false,null,0]
[null,null,null,null,null,null,null,0,false,null,0]
[null,null,null,null,null,null,null,0,false,null,0]
[null,null,null,null,null,null,null,0,false,null,0]
[null,null,null,null,null,null,null,0,false,null,0]
[null,null,null,null,null,null,null,0,false,null,0]
[null,null,null,null,null,null,null,0,false,null,0]
[null,null,null,null,null,"Subtotal:",null,{"$f":"SUM(H21:H50)","v":0},true,50]
[null,null,null,null,null,null,"Shipping & Handling:",null,true,51]
[null,null,null,null,null,"Tax:",null,null,true,52]
[null,null,null,null,null,"Total:",null,{"$f":"SUM(H51:H53)","v":0},true,53]
[null,null,null,null,null,null,null,null,true,54]
["SUBCONTRACTOR: By signing below, the subcontractor attests that they are not a related party to the PRP Contractor that requested the quote.",null,null,null,null,null,null,null,true,55]
[null,null,null,null,null,null,null,null,true,56]
["Subcontractor Signature",null,null,null,"Date",null,null,"Quote Expiration Date",true,57]
[null,null,null,null,null,null,null,"(minimum 6 months)",true,58]
[null,null,null,null,null,null,null,null,true,59]
["Subcontractor Name/Title",null,null,null,null,null,null,null,true,60]
[null,null,null,null,null,null,null,null,true,61]
["Florida has a very broad public records law and any communications to or from state officials or employees are considered public records and will be made available to the public and media upon request.  Please do not include any confidential or proprietary documents or statements in your response.",null,null,null,null,null,null,null,true,62]
[null,null,null,null,null,null,null,null,true,63]

{"sheet":"Instructions","index":1,"n_rows":0,"n_cols":0,"rows_kept":0,"cut":false,"hidden":false,"merged":[]}

{"sheet":"Unit of Measure List","index":2,"n_rows":49,"n_cols":1,"rows_kept":49,"cut":false,"hidden":true,"merged":[]}
["Unit of Measure"]
["Full Day"]
["NOT BILLABLE"]
["Other"]
["Per 2 Hours"]
["Per 2 Hrs "]
["Per Additional Tech Component"]
["Per Agreement"]
["Per Boring"]
["Per Core "]
["Per Cubic Yard"]
["Per Day"]
["Per Drawings"]
["Per Drum"]
["Per Engineering Controls Installation"]
["Per Foot"]
["Per Gallon"]
["Per Hour"]
["Per Linear Foot of Trench"]
["Per Month"]
["Per Package"]
["Per Person, Per Day"]
["Per Plan"]
["Per Report"]
["Per Review"]
["Per Review and Certification"]
["Per Round Trip"]
["Per Sample"]
["Per Sampling Event"]
["Per Set of Drawings"]
["Per Site"]
["Per Spoon "]
["Per Sq. Foot"]
["Per Sq. Foot/Day"]
["Per Sq. Foot/Month"]
["Per Sq. Foot/Week"]
["Per Square Foot"]
["Per Startup"]
["Per Survey"]
["Per System "]
["Per Tank"]
["Per Test"]
["Per Ton"]
["Per Vault"]
["Per Visit"]
["Per Week"]
["Per Well "]
["Percent\nSurcharge"]
["Reimbursable*"]